Cogmind - Beta 9.6 @@@ ROGUE MODE // 2020.09.09 @ 21:50:21 Player: TheGreatBorealis Result: Destroyed by G-50 Soldier with Heavy Laser Performance ------------- Evolutions (5) 2500 Regions Visited (10) 2000 Robots Destroyed (64) 320 Value Destroyed (2742) 2742 Prototype IDs (4) 80 Alien Tech Used (0) 0 Bonus (586) 586 TOTAL SCORE: 8228 Bonus ------- Pacifist 270 High Alert Combat Kills 16 Aligned with FarCom 300 Cogmind --------- Core Integrity 0/1000 Matter 261/300 Energy 39/100 System Corruption 19% Temperature Cool (11) Movement Flying (40) Location -5/Upper Caves Parts ------- > --- POWER (2) -------- (None) > --- PROPULSION (5) --- VTOL Module > --- UTILITY (6) ------ Advanced Hacking Suite > --- WEAPON (4) ------- Autogun > --- INVENTORY (4) ---- Armored Leg Large Storage Unit Kinecellerator Improved Thermal Defense Suite Peak State ------------ > --- POWER ------------ Backup Power III Light Angular Momentum Engine > --- PROPULSION ------- Improved Gravmag System Gravmag Array Antigrav System Antigrav System > --- UTILITY ---------- Large Storage Unit Medium Matter Pod Improved Signal Interpreter Targeting Computer Hacking Suite System Shield > --- WEAPON ----------- XL Autogun Array > --- INVENTORY -------- Large Storage Unit Improved Signal Interpreter Advanced Signal Interpreter Recoil Nullifier Kinecellerator Improved Transmission Jammer High-powered Shock Rifle Minigun Plasma Cutter [Rating: 85] Favorites ----------- Power Ion Engine Engine Ion Engine Propulsion Aluminum Leg Treads Light Treads Leg Aluminum Leg Hover Unit Gravmag Array Flight Unit VTOL Module Utility Large Storage Unit Device Kinecellerator Storage Large Storage Unit Processor Improved Signal Interpreter Hackware Hacking Suite Protection Hardened Medium Armor Plating Weapon XL Autogun Array Energy Gun Tesla Rifle Ballistic Gun XL Autogun Array Launcher Grenade Launcher Special Weapon Plasma Cutter Build | -11 -10 -10 -10 -9 -8 -7 -6 -6 -5 -5 ------- Run | Scr Mat Min Exi Min Mat Fac Fac Ext Fac Upp Slots Evolved 10 | . . . . . 4 2 2 . 2 . Power 1 | . . . . . . . 1 . . . Propulsion 3 | . . . . . 2 . . . 1 . Utility 4 | . . . . . 2 . 1 . 1 . Weapon 2 | . . . . . . 2 . . . . Parts Attached 66 | 6 1 . 2 . 14 3 14 3 21 2 Power 4 | 1 . . . . 1 . 2 . . . Engine 4 | 1 . . . . 1 . 2 . . . Core . | . . . . . . . . . . . Reactor . | . . . . . . . . . . . Propulsion 28 | 2 . . . . 7 1 8 2 7 1 Treads 3 | . . . . . 2 . 1 . . . Leg 16 | 2 . . . . 5 1 3 . 5 . Wheel . | . . . . . . . . . . . Hover 8 | . . . . . . . 4 2 2 . Flight 1 | . . . . . . . . . . 1 Utility 18 | 1 1 . 2 . 1 1 4 1 7 . Device 5 | . 1 . . . 1 . 1 . 2 . Storage 5 | 1 . . 2 . . . . . 2 . Processor 3 | . . . . . . . 2 . 1 . Hackware 3 | . . . . . . . . 1 2 . Protection 2 | . . . . . . 1 1 . . . Artifact . | . . . . . . . . . . . Weapon 16 | 2 . . . . 5 1 . . 7 1 Energy Gun 4 | . . . . . 1 . . . 3 . Energy Cannon . | . . . . . . . . . . . Ballistic Gun 10 | 2 . . . . 3 1 . . 3 1 Ballistic Cannon . | . . . . . . . . . . . Launcher 1 | . . . . . 1 . . . . . Special Weapon 1 | . . . . . . . . . 1 . Impact Weapon . | . . . . . . . . . . . Slashing Weapon . | . . . . . . . . . . . Piercing Weapon . | . . . . . . . . . . . Special Melee Weapon . | . . . . . . . . . . . Unidentified Prototypes 2 | . . . . . . 1 . . 1 . Parts Lost 20 | . . . . . 10 . 2 3 5 . Power 3 | . . . . . 1 . . . 2 . Propulsion 7 | . . . . . 3 . 2 2 . . Utility 4 | . . . . . 1 . . 1 2 . Weapon 6 | . . . . . 5 . . . 1 . Highest Loss Streak 4 | . . . . . 4 . 1 2 3 . Average Slot Usage (%) 66 | . 96 100 100 100 67 51 57 65 66 9 Engine 7 | . 14 14 14 14 8 7 6 6 8 . Leg 13 | . 28 28 28 28 19 14 6 . 17 . Hover 5 | . . . . . . . 8 19 4 . Device 3 | . 10 14 11 . . . 3 . . . Storage 13 | . 14 14 16 28 18 15 13 10 8 . Processor 4 | . . . . . . . 4 13 8 . Hackware 2 | . . . . . . . . 2 9 5 Protection 3 | . . . . . . 5 6 5 . . Ballistic Gun 10 | . 28 28 28 28 12 7 6 6 4 1 Naked Turns 125 | . . . . . . . . . 125 . Heaviest Build 50 | 11 12 12 25 25 29 46 50 50 44 3 Greatest Support 80 | 20 20 20 20 20 40 20 53 53 80 5 Greatest Overweight (x) 14 | . . . 1 1 2 3 4 1 14 . Average Overweight (x) . | . . . . 1 . 1 . . . . Largest Inventory Capacity 10 | 6 6 6 10 10 10 10 10 10 10 4 Average Capacity 9 | 5 6 6 8 10 10 10 10 10 9 4 Most Carried 10 | 4 6 6 10 10 10 6 10 10 10 4 Average Carried 7 | 1 5 6 8 9 7 2 7 9 8 4 Final Capacity 10 | 6 6 6 10 10 10 10 10 10 4 4 Final Carried 10 | 4 6 6 10 10 5 4 10 8 4 4 Class Distribution -------------------- 30% | Mutant 30% | Skirmisher 22% | Scavenger-Skirmisher 9% | Hacker-Skirmisher 4% | Hacker-Mutant Dominant Class ---------------- Mutant | -10/Materials Mutant | -10/Mines Mutant | -10/Exiles Mutant | -9/Mines Mutant | -8/Materials Skirmisher | -7/Factory Skirmisher | -6/Factory Scavenger-Skirmisher | -6/Extension Hacker-Skirmisher | -5/Factory Mutant | -5/Upper Caves Resources | -11 -10 -10 -10 -9 -8 -7 -6 -6 -5 -5 ----------- Run | Scr Mat Min Exi Min Mat Fac Fac Ext Fac Upp Matter Collected 2940 | 143 . . 223 . 285 75 667 867 650 30 Remotely 65 | . . . . . 65 . . . . . Salvage Created 3150 | . . . . . 463 73 939 1052 593 30 Parts 158 | . . . . . 27 3 53 45 27 3 Haulers Intercepted . | . . . . . . . . . . . Recyclers Shooed 3 | . . . . . 1 . . 2 . . Parts Field Recycled . | . . . . . . . . . . . Retrieved Matter . | . . . . . . . . . . . Parts Self-Destructed . | . . . . . . . . . . . Prevented . | . . . . . . . . . . . Kills | -11 -10 -10 -10 -9 -8 -7 -6 -6 -5 -5 ------- Run | Scr Mat Min Exi Min Mat Fac Fac Ext Fac Upp Combat Hostiles Destroyed 50 | . . . . . 13 1 11 16 8 1 Melee 1 | . . . . . . . . . . 1 Guns 49 | . . . . . 13 1 11 16 8 . Classes Destroyed 12 | . . . . . 5 . 5 2 . . Worker 2 | . . . . . 2 . . . . . Builder 3 | . . . . . . . 1 2 . . Recycler 1 | . . . . . . . 1 . . . Operator 1 | . . . . . . . 1 . . . Watcher 7 | . . . . . . . 4 2 1 . Swarmer 11 | . . . . . 7 . . 3 . 1 Grunt 10 | . . . . . 4 . . 6 . . Duelist 1 | . . . . . . . . 1 . . Sentry 12 | . . . . . 1 1 2 4 4 . Hunter 7 | . . . . . 1 . 4 . 2 . Programmer 7 | . . . . . . . 5 . 2 . Behemoth 2 | . . . . . . . . 2 . . Best Kill Streak 5 | . . . . . 4 1 5 5 2 1 Combat Bots Only 5 | . . . . . 4 1 2 5 2 1 Max Kills in Single Turn 2 | . . . . . 1 1 2 2 1 1 Gunslinging . | . . . . . . . . . . . Exploded . | . . . . . . . . . . . Melee 1 | . . . . . . . . . . 1 Uniques/NPCs Destroyed . | . . . . . . . . . . . Combat | -11 -10 -10 -10 -9 -8 -7 -6 -6 -5 -5 -------- Run | Scr Mat Min Exi Min Mat Fac Fac Ext Fac Upp Damage Taken 5102 | . . . . . 1445 72 322 616 2500 147 Core 1417 | . . . . . 350 . 21 46 855 145 Absorbed by Shields . | . . . . . . . . . . . Core Remaining (%) 85 | 100 . . . 100 36 100 . 92 . . Volleys Fired 236 | . . . . . 79 3 37 59 58 . Largest 2 | . . . . . 2 1 1 1 2 . Hottest 98 | . . . . . 95 60 60 60 98 . Shots Fired 299 | . . . . . 126 3 38 62 70 . Gun 289 | . . . . . 124 3 38 62 62 . Cannon . | . . . . . . . . . . . Launcher 2 | . . . . . 2 . . . . . Special 8 | . . . . . . . . . 8 . Kinetic 258 | . . . . . 113 3 38 62 42 . Thermal 27 | . . . . . 11 . . . 16 . Explosive 2 | . . . . . 2 . . . . . Electromagnetic 12 | . . . . . . . . . 12 . Robot Hit Streak 23 | . . . . . 12 20 15 23 8 . Robot Miss Streak 12 | . . . . . 6 1 4 12 4 . Penetration Max . | . . . . . . . . . . . Secondary Targets 2 | . . . . . 2 . . . . . Max Gunslinging Chain 1 | . . . . . 1 . . . . . Shots Hit Robots 225 | . . . . . 86 3 36 54 46 . Core Hits 145 | . . . . . 38 2 32 42 27 4 Critical Hits . | . . . . . . . . . . . Critical Kills . | . . . . . . . . . . . Critical Parts Destroyed . | . . . . . . . . . . . Melee Attacks . | . . . . . . . . . . . Impact . | . . . . . . . . . . . Slashing . | . . . . . . . . . . . Piercing . | . . . . . . . . . . . Sneak Attacks . | . . . . . . . . . . . Combat Hostiles . | . . . . . . . . . . . Follow-up Attacks . | . . . . . . . . . . . Damage Inflicted 8396 | . . . . . 877 219 2126 3385 1769 20 Guns 8262 | . . . . . 816 219 2118 3367 1742 . Cannons . | . . . . . . . . . . . Explosions 52 | . . . . . 52 . . . . . Melee . | . . . . . . . . . . . Ramming 82 | . . . . . 9 . 8 18 27 20 Kinetic 7898 | . . . . . 723 219 2118 3367 1471 . Thermal 235 | . . . . . 93 . . . 142 . Explosive 52 | . . . . . 52 . . . . . Electromagnetic 129 | . . . . . . . . . 129 . Impact . | . . . . . . . . . . . Slashing . | . . . . . . . . . . . Piercing . | . . . . . . . . . . . Highest Corruption 19 | . . . . . 2 . 5 5 19 19 Average Corruption 5 | . . . . . 2 . 4 5 13 19 Corruption Purged . | . . . . . . . . . . . Effects 67 | . . . . . 5 . 27 22 11 2 Message Errors 18 | . . . . . 2 . 10 3 3 . Matter Fused 14 | . . . . . . . 6 6 2 . Heat Flow Errors 7 | . . . . . 1 . 1 3 2 . Energy Discharges 11 | . . . . . 2 . 5 2 1 1 Data Loss (minor) 5 | . . . . . . . 3 1 1 . Misfires 4 | . . . . . . . 1 3 . . Misdirections 3 | . . . . . . . . . 2 1 Targeting Errors 5 | . . . . . . . 1 4 . . Overload Shots . | . . . . . . . . . . . Overflow Damage . | . . . . . . . . . . . Projectiles . | . . . . . . . . . . . Explosions . | . . . . . . . . . . . Melee . | . . . . . . . . . . . Knockbacks . | . . . . . . . . . . . Impact . | . . . . . . . . . . . Kinetic . | . . . . . . . . . . . Secondary . | . . . . . . . . . . . Self-Inflicted Damage 34 | . . . . . 13 . 4 9 . 8 Shots 1 | . . . . . 1 . . . . . Rammed 11 | . . . . . 2 . 1 1 . 7 Targets Rammed 20 | . . . . . 4 . 1 1 7 7 Kicked 9 | . . . . . 2 . . . 7 . Crushed . | . . . . . . . . . . . Highest Temperature 412 | . . . . . 228 126 207 412 349 . Average Temperature 115 | . . . . . 68 67 73 155 111 . Received Heat Transfer 762 | . . . . . 387 18 18 96 216 27 Effects 7 | . . . . . 1 . . 5 1 . Energy Bleed 3 | . . . . . 1 . . 2 . . Interference 2 | . . . . . . . . 2 . . Short Circuit 1 | . . . . . . . . . 1 . Damage (minor) 1 | . . . . . . . . 1 . . Siege Activations . | . . . . . . . . . . . Robots Corrupted . | . . . . . . . . . . . Combat Hostiles . | . . . . . . . . . . . Parts Fried . | . . . . . . . . . . . Impact Corruptions . | . . . . . . . . . . . Robots Melted . | . . . . . . . . . . . Combat Hostiles . | . . . . . . . . . . . Parts Melted 1 | . . . . . 1 . . . . . Heat Transferred 444 | . . . . . 222 . . . 222 . Parts Sabotaged . | . . . . . . . . . . . Parts Stolen . | . . . . . . . . . . . Parts Stripped . | . . . . . . . . . . . Power Chain Reactions 1 | . . . . . . . 1 . . . Missiles Intercepted . | . . . . . . . . . . . Alert | -11 -10 -10 -10 -9 -8 -7 -6 -6 -5 -5 ------- Run | Scr Mat Min Exi Min Mat Fac Fac Ext Fac Upp Peak Influence 460 | . . . . . 160 46 355 385 460 . Average Influence 126 | . . . . . 69 22 101 200 273 . Maximum Alert Level 2 | . . . . . . . 1 1 2 . Low Security (%) 67 | 100 100 100 . 100 100 100 67 67 15 . Level 1 31 | . . . . . . . 32 32 78 . Level 2 1 | . . . . . . . . . 6 . Level 3 . | . . . . . . . . . . . Level 4 . | . . . . . . . . . . . Level 5 . | . . . . . . . . . . . High Security . | . . . . . . . . . . . Max Security . | . . . . . . . . . . . Squads Dispatched 21 | . 1 . . . 2 1 9 1 7 . Investigation 7 | . 1 . . . . . 4 1 1 . Extermination 8 | . . . . . . 1 5 . 2 . Reinforcement 3 | . . . . . 2 . . . 1 . Assault . | . . . . . . . . . . . Garrison 3 | . . . . . . . . . 3 . Intercept . | . . . . . . . . . . . Construction Impeded . | . . . . . . . . . . . Haulers Reinforced . | . . . . . . . . . . . Stealth | -11 -10 -10 -10 -9 -8 -7 -6 -6 -5 -5 --------- Run | Scr Mat Min Exi Min Mat Fac Fac Ext Fac Upp Distress Signals 4 | . . . . . 1 . . 2 1 . Communications Jammed . | . . . . . . . . . . . Distress Signals . | . . . . . . . . . . . Times Spotted 89 | . 1 . . . 21 1 19 21 22 4 Peak Tracking Total 6 | . 1 . . . 4 1 2 4 6 3 Tactical Retreats 5 | . . . . . . . . 2 2 1 Traps | -11 -10 -10 -10 -9 -8 -7 -6 -6 -5 -5 ------- Run | Scr Mat Min Exi Min Mat Fac Fac Ext Fac Upp Traps Triggered 7 | . 1 . . . . . 4 2 . . Indirectly . | . . . . . . . . . . . Trap Hack Attempts . | . . . . . . . . . . . Triggered . | . . . . . . . . . . . Disarmed . | . . . . . . . . . . . Reprogrammed . | . . . . . . . . . . . Reused . | . . . . . . . . . . . Traps Extracted . | . . . . . . . . . . . Installed . | . . . . . . . . . . . Triggered . | . . . . . . . . . . . Machines | -11 -10 -10 -10 -9 -8 -7 -6 -6 -5 -5 ---------- Run | Scr Mat Min Exi Min Mat Fac Fac Ext Fac Upp Machines Disabled 10 | . . . . . 1 . 5 2 2 . Max in Single Turn 2 | . . . . . 1 . 2 1 1 . Machines Sabotaged . | . . . . . . . . . . . Garrisons Compromised . | . . . . . . . . . . . Overloaded Fab Kills . | . . . . . . . . . . . Fab Network Shutdowns . | . . . . . . . . . . . Hacking | -11 -10 -10 -10 -9 -8 -7 -6 -6 -5 -5 --------- Run | Scr Mat Min Exi Min Mat Fac Fac Ext Fac Upp Machines Accessed 22 | . 1 . 1 . 1 2 7 4 6 . Terminals 14 | . . . . . 1 1 4 4 4 . Fabricators 2 | . . . . . . 1 1 . . . Repair Stations 2 | . . . . . . . 1 . 1 . Recycling Units 1 | . 1 . . . . . . . . . Scanalyzers 2 | . . . . . . . 1 . 1 . Garrison Access . | . . . . . . . . . . . Total Hacks 61 | . 7 . 7 . 4 4 17 9 13 . Successful 35 | . 6 . 7 . 2 1 8 4 7 . Failed 26 | . 1 . . . 2 3 9 5 6 . Catastrophic 3 | . . . . . . . 1 2 . . Database Lockouts . | . . . . . . . . . . . Manual 19 | . . . 2 . 2 3 7 3 2 . Terminals 29 | . . . . . 4 2 9 9 5 . Fabricators 3 | . . . . . . 2 1 . . . Repair Stations 6 | . . . . . . . 2 . 4 . Recycling Units 7 | . 7 . . . . . . . . . Scanalyzers 9 | . . . . . . . 5 . 4 . Garrison Access . | . . . . . . . . . . . Terminal Hacks 20 | . . . 7 . 2 1 4 4 2 . Record 15 | . . . 7 . . 1 4 1 2 . Prototype ID Bank 1 | . . . . . 1 . . . . . Open Door 1 | . . . . . . . . 1 . . Emergency Access Points 1 | . . . . . . . . 1 . . Dispatch Records 1 | . . . . . 1 . . . . . Zone Layout 1 | . . . . . . . . 1 . . Fabricator Hacks . | . . . . . . . . . . . Repair Station Hacks 2 | . . . . . . . . . 2 . Scan Component 1 | . . . . . . . . . 1 . Refit 1 | . . . . . . . . . 1 . Recycling Unit Hacks 6 | . 6 . . . . . . . . . Recycle Component 2 | . 2 . . . . . . . . . Process 2 | . 2 . . . . . . . . . Report Inventory 1 | . 1 . . . . . . . . . Retrieve Matter 1 | . 1 . . . . . . . . . Scanalyzer 4 | . . . . . . . 2 . 2 . Insert Component 2 | . . . . . . . 1 . 1 . Analyze 2 | . . . . . . . 1 . 1 . Garrison Access Hacks . | . . . . . . . . . . . Unauthorized Hacks 3 | . . . . . . . 2 . 1 . Terminals 2 | . . . . . . . 1 . 1 . Assimilate 2 | . . . . . . . 1 . 1 . Fabricators 1 | . . . . . . . 1 . . . Overload 1 | . . . . . . . 1 . . . Repair Stations . | . . . . . . . . . . . Recycling Units . | . . . . . . . . . . . Scanalyzers . | . . . . . . . . . . . Garrison Access . | . . . . . . . . . . . Data Cores Recovered 1 | . . . . . . . 1 . . . Used . | . . . . . . . . . . . Hacking Detections 15 | . 1 . . . 1 2 5 3 3 . Full Trace Events 3 | . . . . . . . 1 1 1 . Feedback Events . | . . . . . . . . . . . Feedback Blocked . | . . . . . . . . . . . Robot Schematics Acquired . | . . . . . . . . . . . Robots Built . | . . . . . . . . . . . Matter . | . . . . . . . . . . . Time . | . . . . . . . . . . . Total Robot Build Rating . | . . . . . . . . . . . Part Schematics Acquired 2 | . . . . . . . 1 . 1 . Parts Built . | . . . . . . . . . . . Matter . | . . . . . . . . . . . Time . | . . . . . . . . . . . Total Part Build Rating . | . . . . . . . . . . . Parts Repaired . | . . . . . . . . . . . Time . | . . . . . . . . . . . Parts Recycled 2 | . 2 . . . . . . . . . Recycled Matter 24 | . 24 . . . . . . . . . Retrieved Matter 24 | . 24 . . . . . . . . . Retrieved Components . | . . . . . . . . . . . Parts Scanalyzed 2 | . . . . . . . 1 . 1 . Part Schematics Acquired 2 | . . . . . . . 1 . 1 . Parts Damaged . | . . . . . . . . . . . Bothacking | -11 -10 -10 -10 -9 -8 -7 -6 -6 -5 -5 ------------ Run | Scr Mat Min Exi Min Mat Fac Fac Ext Fac Upp Used RIF Installer . | . . . . . . . . . . . Robots Hacked . | . . . . . . . . . . . Non-combat . | . . . . . . . . . . . Combat . | . . . . . . . . . . . Robot Hacks Applied . | . . . . . . . . . . . Relay Couplers Released . | . . . . . . . . . . . Robots Rewired . | . . . . . . . . . . . Allies Hacked . | . . . . . . . . . . . Hacks Repelled . | . . . . . . . . . . . Allies | -11 -10 -10 -10 -9 -8 -7 -6 -6 -5 -5 -------- Run | Scr Mat Min Exi Min Mat Fac Fac Ext Fac Upp Total Allies 2 | . . . . . . . 1 . 1 . Largest Group 1 | . . . . . . . 1 . 1 . Highest-Rated Group 26 | . . . . . . . 8 . 26 . Highest-Rated Ally 26 | . . . . . . . 8 . 26 . Total Orders 1 | . . . . . . . . . 1 . GOTO 1 | . . . . . . . . . 1 . Ally Attacks . | . . . . . . . . . . . Total Damage . | . . . . . . . . . . . Kills . | . . . . . . . . . . . Allies Corrupted . | . . . . . . . . . . . Allies Melted . | . . . . . . . . . . . Intel | -11 -10 -10 -10 -9 -8 -7 -6 -6 -5 -5 ------- Run | Scr Mat Min Exi Min Mat Fac Fac Ext Fac Upp Robot Analysis Total . | . . . . . . . . . . . Derelict Logs Recovered . | . . . . . . . . . . . Drone Launches . | . . . . . . . . . . . Drone Recoveries . | . . . . . . . . . . . Exploration | -11 -10 -10 -10 -9 -8 -7 -6 -6 -5 -5 ------------- Run | Scr Mat Min Exi Min Mat Fac Fac Ext Fac Upp Turns Passed 7270 | 67 250 77 748 44 883 767 2374 744 1290 26 Spaces Moved 5234 | 49 199 65 523 29 306 422 1642 731 1241 27 Core 342 | 6 . . . . . . . . 312 24 Treads 118 | . . . . . 105 . 13 . . . Legs 2648 | 43 199 65 523 29 201 422 686 . 480 . Wheels . | . . . . . . . . . . . Hover 2123 | . . . . . . . 943 731 449 . Flight 3 | . . . . . . . . . . 3 Fastest Speed 40 | 50 120 120 120 150 120 150 52 52 48 40 Average Speed 106 | 111 120 120 140 150 147 174 112 54 78 48 Slowest Speed 750 | 120 120 120 150 150 180 210 240 106 750 50 Overloaded Moves . | . . . . . . . . . . . Propulsion Burnouts . | . . . . . . . . . . . Robots Hopped . | . . . . . . . . . . . Cave-ins Triggered . | . . . . . . . . . . . Exploration Rate (%) 26 | 4 14 19 91 10 23 10 28 50 34 5 Regions Visited 10 Branch Regions 5 Pre-discovered Areas . | . . . . . . . . . . . Known Exits Taken 2 | . . . . . . . 1 1 . . Unknown Exits Taken 8 | 1 1 1 1 1 1 1 . . 1 . Scrap Searched . | . . . . . . . . . . . Spaces Dug 8 | . . . . . 8 . . . . . Terrain Destroyed 76 | . . . . . 8 . 48 13 7 . Melee . | . . . . . . . . . . . Projectile 38 | . . . . . . . 18 13 7 . AOE 38 | . . . . . 8 . 30 . . . Actions | -11 -10 -10 -10 -9 -8 -7 -6 -6 -5 -5 --------- Run | Scr Mat Min Exi Min Mat Fac Fac Ext Fac Upp Total 6779 | 58 210 64 536 30 633 453 2175 1074 1507 39 Wait 1125 | . 6 . . . 228 22 458 253 155 3 Move 5224 | 48 198 64 522 28 305 421 1641 730 1240 27 Hop . | . . . . . . . . . . . Pick Up 39 | 4 5 . 6 1 1 3 11 . 8 . Fast Attach 32 | 6 . . . . 1 1 10 . 12 2 Attach 25 | . 1 . . . 9 2 3 3 7 . Detach 11 | . . . . . . 1 5 1 4 . Swap 9 | . . . 2 . 4 . 1 . 2 . Drop 32 | . . . 6 1 2 . 8 1 14 . Fire 236 | . . . . . 79 3 37 59 58 . Melee . | . . . . . . . . . . . Ram 9 | . . . . . . . 1 1 . 7 Kick 11 | . . . . . 4 . . . 7 . Crush . | . . . . . . . . . . . Escape Stasis 26 | . . . . . . . . 26 . . Rewire . | . . . . . . . . . . . Trap . | . . . . . . . . . . . Miscellaneous . | . . . . . . . . . . . Route ------- -11/Scrapyard -10/Materials -10/Mines -10/Exiles -9/Mines -8/Materials -7/Factory -6/Factory -6/Extension -5/Factory -5/Upper Caves History --------- Turn | Location | Event 2 | -11/Scrapyard | Met Revision 17 4 | -11/Scrapyard | Discovered new exit (range 14) 68 | -11/Scrapyard | Entered Materials 77 | -10/Materials | Discovered new exit (range 15) 301 | -10/Materials | Build established: Mutant 318 | -10/Materials | Entered Mines 389 | -10/Mines | Deemed a non-threat by the Exiles lab entrance 390 | -10/Mines | Discovered new exit (range 5) 395 | -10/Mines | Entered Exiles 424 | -10/Exiles | Met 8R-AWN 445 | -10/Exiles | Met EX-HEX 524 | -10/Exiles | Met EX-BIN 538 | -10/Exiles | Aligned with FarCom system 539 | -10/Exiles | Given EX-Vault access code 577 | -10/Exiles | Opened EX-Vault 582 | -10/Exiles | Found Prototype Ballistic Gun 631 | -10/Exiles | Warned to stay clear of 0b10 Research branches 774 | -10/Exiles | Met EX-DEC 826 | -10/Exiles | Visited The Gauntlet 1126 | -10/Exiles | Discovered new exit (range 14) 1143 | -10/Exiles | Left Exiles lab with XL Autogun Array 1143 | -10/Exiles | Entered Mines 1155 | -9/Mines | Assisted by bots powering up and referring to "LRC-V3" 1167 | -9/Mines | Discovered new exit (range 10) 1187 | -9/Mines | Entered Materials 1187 | -8/Materials | Evolved 4 slots: Propulsion x2, Utility x2 1777 | -8/Materials | Lost 4 parts (1n3w) 1939 | -8/Materials | Core integrity fell below 50% 1978 | -8/Materials | Lost 3 parts (2n1w) 2053 | -8/Materials | Discovered new exit (range 8) 2070 | -8/Materials | Entered Factory 2070 | -7/Factory | Evolved 2 slots: Weapon x2 2071 | -7/Factory | Identified XL Autogun Array 2174 | -7/Factory | Discovered new exit (range 6) 2363 | -7/Factory | Build established: Skirmisher 2837 | -7/Factory | Entered another Factory area 2837 | -6/Factory | Evolved 2 slots: Power x1, Utility x1 4661 | -6/Factory | Build established: Scavenger-Skirmisher 5190 | -6/Factory | Discovered new exit (range 16) 5204 | -6/Factory | Identified exit to Extension 5211 | -6/Factory | Entered Extension 5792 | -6/Extension | Spotted B-75 Beast 5847 | -6/Extension | Destroyed B-75 Beast 5920 | -6/Extension | Spotted B-75 Beast 5933 | -6/Extension | Destroyed B-75 Beast 5936 | -6/Extension | Disrupted transfer network 5954 | -6/Extension | Discovered new exit (range 3) 5954 | -6/Extension | Identified exit to Factory 5955 | -6/Extension | Entered Factory 5955 | -5/Factory | Evolved 2 slots: Propulsion x1, Utility x1 6251 | -5/Factory | Garrison activated, responded to threat 6615 | -5/Factory | Build established: Hacker-Skirmisher 7075 | -5/Factory | System corruption reached 10% 7088 | -5/Factory | Released all parts (10) 7109 | -5/Factory | Lost 3 parts (1p1u1w) 7217 | -5/Factory | Core integrity fell below 50% 7230 | -5/Factory | Core integrity fell below 20% 7238 | -5/Factory | Discovered new exit (range 16) 7245 | -5/Factory | Entered Upper Caves 7271 | -5/Upper Caves | Destroyed by G-50 Soldier with Heavy Laser Last Messages --------------- 07229_ Penetrated by Slug. 07235_ T-07 Excavator is excavating. 07238_ EXIT=FOUND 07239_ T-07 Excavator is excavating. 07243_ System corrupted: Heat flow error (+128). 07243_ T-07 Excavator is excavating. 07243_ K-01 Serf destroyed. 07244_ R-10 Processor destroyed. 07244_ Slug penetrates Wall. LOCATION=UNKNOWN GOAL=ESCAPE 07246_ Slug penetrates Wall. 07260_ Slammed into S-27 Virus. 07260_ Destabilizing: Core damaged (-30). 07261_ Slammed into S-27 Virus. 07266_ S-27 Virus destroyed. 07267_ Acquired 30 matter. 07268_ System corrupted: Energy discharge (-30). 07268_ Acquired VTOL Module. 07269_ Acquired Autogun. Map ----- +----------------------------------------------------+ | ???????????? ???????????????????????????????? | | ???????##### ?????????????????????????????? | | ???????# ?????????????????????????????? | | ???????# ??????????????????????????????? | | ???????# ???????????????????????????????? | | ??????? ????????????????????????????????? | | ???????# ?????????????????????????????????? | | ???????# ??????????????????????????????????? | | ???????# ???????????????????????????????????? | | ???????# #????????????????????????????????????? | | ??????## #?????????????????????????????????????? | | ??????# #??????????????????????????????????????? | | ??????# ##?????????????????????????????????????? | | ??????# #?????????????????????????????????????? | | ??????## #?????????????????????????????????????? | | ???????## #######???????????????????????????????? | | ????????# ## # ##??????????????????????????????? | | ????????# # #??????????????????????????????? | | ???????## #??????????????????????????????? | | ???????# #?###??????????????????????????? | | ???????# #Y #### #??????????????????????????? | | ?? g # #??????????????????????????? | | ????# ##### # ### ######?????????????????????? | | ????#?????## #?## #?????????????????????? | | ???????????## ##??## # ##?????????????????????? | | ????????????###????## @ #?????????????????????? | | ????????????????????## #?????????????????????? | | ?????????????????????### *#?????????????????????? | | ?????????????????????# ##?????????????????????? | | ?????????????????????# # #?????????????????????? | | ?????????????????????### ##?????????????????????? | | ???????????????????????####??????????????????????? | | ?????????????????????????????????????????????????? | | ?????????????????????????????????????????????????? | | ?????????????????????????????????????????????????? | | ?????????????????????????????????????????????????? | | ?????????????????????????????????????????????????? | | ?????????????????????????????????????????????????? | | ?????????????????????????????????????????????????? | | ?????????????????????????????????????????????????? | | ?????????????????????????????????????????????????? | | ?????????????????????????????????????????????????? | | ?????????????????????????????????????????????????? | | ?????????????????????????????????????????????????? | | ?????????????????????????????????????????????????? | | ?????????????????????????????????????????????????? | | ?????????????????????????????????????????????????? | | ?????????????????????????????????????????????????? | | ?????????????????????????????????????????????????? | | ?????????????????????????????????????????????????? | +----------------------------------------------------+ Best States ------------- Heat Dissipation 40 Energy Generation 24 Energy Capacity 250 Matter Stores 400 Matter Capacity 400 Sight Range 16 Terrain Scan Density 10 Armor Coverage 225 Evasion (%) 55 Targeting Accuracy 6 Recoil Reduction 6 Kinecelleration 30 Offensive Hacking 14 Defensive Hacking 10 Item Schematics ----------------- Aluminum Leg | -6/Factory | Scanalyzed Adv. Signal Interpreter | -5/Factory | Scanalyzed Robot Schematics ------------------ None Fabricated ------------ Nothing Alien Tech Used ----------------- None Achievements -------------- Brute Force Challenges ------------ None Game ------ Seed RocketRelayRigger Manual? 0 Play Time 01:23:44 Cumulative 28.9 hours Start 2020.09.09 @ 20:23:40 End 2020.09.09 @ 21:50:21 Sessions 1 Manual Loads 0 Difficulty Rogue Special Mode None Game No. 61 Rogue 61 Adventurer 0 Explorer 0 Win Type - Total 0 Types 0/0/0/0/0/0/0 Lore% 21 Gallery% 33 Achievement% 26 Wizard Run 0 Options --------- ASCII 0 Keyboard 1 Movement Numpad Keybinds 0 Fullscreen 2 Font 18/Terminus Map View 76x50 Tactical HUD 1 Map Filters NONE Filters NONE Steam 1 RUN: abc3e2a8-232c-4674-ac65-617065994d72